bitfinex-derivatives/quotes_BTCF0:USTF0_20240923
["timestamp","ask_amount","ask_price","bid_price","bid_amount"]
[1727107230548,0.078562,63642.0,63641.0,0.078561]
[1727107230749,0.3608,63645.0,63638.0,0.078565]
[1727107230947,0.13,63641.0,63634.0,0.078569]
[1727107231151,0.13,63641.0,63632.0,0.0023573]
[1727107231152,0.13,63641.0,63635.0,0.078568]
[1727107231351,0.13,63641.0,63636.0,0.078567]
[1727107231651,0.078563,63640.0,63633.0,0.13]
[1727107232253,0.094,63644.0,63633.0,0.13]
[1727107232254,0.07856,63642.0,63634.0,0.001]
[1727107232551,0.094,63644.0,63643.0,0.078559]
[1727107232759,0.00152,63645.0,63641.0,0.13]
[1727107232941,0.078552,63649.0,63647.0,0.078553]
[1727107233142,0.006,63651.0,63637.0,0.078566]
[1727107233143,0.006,63651.0,63645.0,0.13]
[1727107233343,0.4908,63650.0,63637.0,0.13]
[1727107233636,0.07856,63643.0,63642.0,0.07856]
[1727107234246,0.078563,63640.0,63639.0,0.078563]
[1727107234564,0.3608,63642.0,63636.0,0.439367]
[1727107234756,0.078566,63638.0,63637.0,0.078566]
[1727107237152,0.002,63638.0,63637.0,0.569366]
[1727107237742,0.004,63638.0,63637.0,0.569366]
[1727107238476,0.4065,63656.0,63637.0,1.56224]
[1727107238646,0.078551,63650.0,63649.0,0.078549]
[1727107238952,0.078547,63653.0,63652.0,0.078547]
[1727107239156,0.4065,63656.0,63650.0,0.13]
[1727107239359,0.4065,63656.0,63655.0,0.078544]
[1727107239558,0.485043,63656.0,63655.0,0.078544]
[1727107240355,0.453343,63656.0,63655.0,0.078544]
[1727107240848,0.467343,63656.0,63655.0,0.078544]
[1727107241051,0.453343,63656.0,63655.0,0.078544]
[1727107241246,0.467343,63656.0,63655.0,0.078544]
[1727107241752,0.028,63656.0,63655.0,0.078544]
[1727107241951,0.026,63656.0,63655.0,0.079544]
[1727107242563,0.0023573,63664.0,63655.0,0.079544]
[1727107242564,0.078529,63668.0,63655.0,0.3618]
[1727107242760,0.3608,63671.0,63655.0,0.3618]
[1727107242761,0.078531,63666.0,63665.0,0.078532]
[1727107244662,0.07853,63668.0,63667.0,0.078528]
[1727107244857,0.007,63666.0,63665.0,0.001]
[1727107245063,0.16406,63666.0,63665.0,0.001]
[1727107245265,0.16406,63666.0,63653.0,0.0037]
[1727107245266,0.078545,63654.0,63653.0,0.0037]
[1727107245455,0.078545,63654.0,63650.0,0.49315644]
[1727107246052,0.078541,63658.0,63650.0,0.49315644]
[1727107246252,0.078541,63658.0,63656.0,0.13]
[1727107246660,0.078541,63658.0,63657.0,0.078541]
[1727107246861,0.08553,63666.0,63661.0,0.078537]
[1727107246862,0.3608,63662.0,63661.0,0.078537]
[1727107247164,0.078535,63663.0,63661.0,0.13]
[1727107247958,0.078531,63666.0,63661.0,0.13]
[1727107248262,0.4104,63670.0,63661.0,0.13]
[1727107248475,0.078528,63668.0,63667.0,0.078528]
[1727107248654,0.36228,63670.0,63665.0,0.13]
[1727107248857,0.3608,63670.0,63669.0,0.208527]
[1727107250056,0.440797,63677.0,63675.0,0.078519]
[1727107250259,0.439317,63677.0,63675.0,0.078518]
[1727107250451,0.078517,63677.0,63676.0,0.078518]
[1727107251269,0.091517,63677.0,63676.0,0.078518]
[1727107251653,0.091517,63677.0,63676.0,0.439318]
[1727107252255,0.013,63677.0,63676.0,0.439318]
[1727107252566,0.024,63677.0,63676.0,0.439318]
[1727107252775,0.024,63677.0,63676.0,0.629318]
[1727107253067,0.023,63677.0,63676.0,0.630318]
[1727107253263,0.023,63677.0,63676.0,0.631318]
[1727107255669,0.101517,63677.0,63676.0,0.441318]
[1727107256273,0.093517,63677.0,63676.0,0.440318]
[1727107256869,0.084517,63677.0,63676.0,0.439318]
[1727107257176,0.165034,63677.0,63676.0,0.3608]
[1727107257362,0.165034,63677.0,63666.0,0.0037]
[1727107257363,0.078524,63671.0,63668.0,0.078527]
[1727107257570,0.078524,63671.0,63664.0,0.0486]
[1727107257571,0.3608,63672.0,63664.0,0.078532]
[1727107257770,0.0473,63670.0,63662.0,0.3608]
[1727107257966,0.07852,63675.0,63662.0,0.3608]
[1727107257967,0.07852,63675.0,63673.0,0.078521]
[1727107258165,0.078521,63674.0,63673.0,0.268521]
[1727107258865,0.1389,63676.0,63669.0,0.3608]
[1727107258866,0.078526,63670.0,63669.0,0.078526]
[1727107259774,0.001,63670.0,63669.0,0.078526]
[1727107260689,0.078524,63671.0,63663.0,0.19]
[1727107260978,0.078529,63668.0,63667.0,0.078529]
[1727107262079,0.439329,63668.0,63667.0,0.078529]
[1727107262264,0.078529,63668.0,63667.0,0.078529]
[1727107262676,0.001,63670.0,63669.0,0.078527]
[1727107262977,0.439321,63674.0,63673.0,0.078522]
[1727107262978,0.00148,63674.0,63673.0,0.078522]
[1727107263275,0.078521,63674.0,63673.0,0.078522]
[1727107263670,0.47116,63674.0,63667.0,0.001]
[1727107263877,0.439328,63668.0,63667.0,0.001]
[1727107264067,0.078528,63668.0,63667.0,0.078529]
[1727107264267,0.001,63670.0,63669.0,0.078527]
[1727107264573,0.079525,63670.0,63669.0,0.078527]
[1727107265869,0.078525,63670.0,63669.0,0.078527]
[1727107266471,0.004,63670.0,63669.0,0.078527]
[1727107266676,0.004,63670.0,63669.0,0.157054]
[1727107266878,0.009,63670.0,63669.0,0.157054]
[1727107267073,0.007,63670.0,63669.0,0.157054]
[1727107267666,0.007,63670.0,63669.0,0.078527]
[1727107268577,0.002,63670.0,63669.0,0.157054]
[1727107268774,0.003,63670.0,63669.0,0.078527]
[1727107268979,0.006,63670.0,63669.0,0.126027]
[1727107269386,0.003,63670.0,63669.0,0.204554]
[1727107269592,0.0484,63683.0,63669.0,0.204554]
[1727107269593,0.3608,63688.0,63679.0,0.078514]
[1727107269780,0.07851,63683.0,63679.0,0.19]
[1727107269974,0.07851,63683.0,63682.0,0.078511]
[1727107270285,0.0492,63687.0,63674.0,0.04650015]
[1727107270484,0.078523,63672.0,63671.0,0.0008]
[1727107270784,0.078525,63670.0,63669.0,0.002]
[1727107270976,0.078525,63670.0,63669.0,0.080527]
[1727107271671,0.549725,63670.0,63669.0,0.080527]
[1727107271876,0.549725,63670.0,63669.0,0.002]
[1727107272083,0.078533,63664.0,63663.0,0.12503315]
[1727107272272,0.078533,63664.0,63661.0,0.04656551]
[1727107272273,0.4908,63664.0,63661.0,0.04656551]
[1727107272483,0.078542,63657.0,63656.0,0.04657504]
[1727107272678,0.078537,63661.0,63653.0,0.04657504]
[1727107272877,0.07854,63659.0,63654.0,0.13]
[1727107273285,0.07854,63659.0,63653.0,0.04657504]
[1727107273286,0.0496,63661.0,63660.0,0.078538]
[1727107273499,0.078534,63664.0,63663.0,0.078533]
[1727107273790,0.0496,63669.0,63663.0,0.208533]
[1727107273977,0.128127,63669.0,63668.0,0.13]
[1727107274292,0.05155682,63671.0,63670.0,0.078525]
[1727107275188,0.13008082,63671.0,63670.0,0.078525]
[1727107275376,0.05155682,63671.0,63670.0,0.078525]
[1727107275771,0.00235682,63671.0,63670.0,0.078525]
[1727107276181,0.00235682,63671.0,63670.0,0.079525]
[1727107276488,0.01235682,63671.0,63670.0,0.079525]
[1727107276893,0.02235682,63671.0,63670.0,0.080525]
[1727107277096,0.01235682,63671.0,63670.0,0.079525]
[1727107277278,0.09088082,63671.0,63670.0,0.079525]
[1727107277586,0.078529,63668.0,63666.0,0.04657504]
[1727107277796,0.07853,63666.0,63664.0,0.13]
[1727107278792,0.07853,63666.0,63665.0,0.078532]
[1727107278991,0.3608,63668.0,63667.0,0.078529]
[1727107279193,0.078527,63669.0,63668.0,0.078528]
[1727107279379,0.078527,63669.0,63668.0,0.208528]
[1727107279694,0.00235682,63671.0,63670.0,0.078525]
[1727107280691,0.00735682,63671.0,63670.0,0.078525]
[1727107281087,0.08588082,63671.0,63670.0,0.078525]
[1727107281283,0.08788082,63671.0,63670.0,0.079525]
[1727107281795,0.08788082,63671.0,63670.0,0.15805]
[1727107281796,0.01813682,63671.0,63670.0,0.15805]
[1727107282101,0.0037,63680.0,63679.0,0.078514]
[1727107282293,0.078505,63687.0,63686.0,0.078506]
[1727107282479,0.36228,63689.0,63688.0,0.078503]
[1727107282686,0.3608,63689.0,63688.0,0.078503]
[1727107283190,0.439302,63689.0,63688.0,0.078503]
[1727107283496,0.3608,63689.0,63688.0,0.078503]
[1727107284380,0.3668,63689.0,63688.0,0.079503]
[1727107285486,0.006,63689.0,63688.0,0.079503]
[1727107285987,0.015,63689.0,63688.0,0.080503]
[1727107286685,0.015,63689.0,63688.0,0.159006]
[1727107287982,0.014,63689.0,63688.0,0.158006]
[1727107288196,0.014,63689.0,63688.0,0.518806]
[1727107288487,0.0037,63699.0,63698.0,0.078491]
[1727107288688,0.00148,63703.0,63702.0,0.078486]
[1727107288879,0.0465,63708.0,63705.0,0.078482]
[1727107288880,0.078481,63706.0,63705.0,0.078482]
[1727107289388,0.439281,63706.0,63705.0,0.078482]
[1727107289693,0.0465,63708.0,63702.0,0.13]
[1727107289694,0.078485,63703.0,63702.0,0.13]
[1727107290491,0.078485,63703.0,63698.0,0.001]
[1727107290492,0.07849,63699.0,63698.0,0.001]
[1727107290792,0.15698,63699.0,63698.0,0.001]
[1727107291195,0.07849,63699.0,63698.0,0.001]
[1727107291379,0.078495,63695.0,63694.0,0.078494]
[1727107291578,0.3608,63697.0,63691.0,0.13]
[1727107291792,0.3608,63697.0,63696.0,0.208493]
[1727107291987,0.078491,63698.0,63697.0,0.078492]
[1727107292489,0.078487,63701.0,63700.0,0.078487]
[1727107293885,0.078487,63701.0,63700.0,0.209487]
[1727107294296,0.078487,63701.0,63700.0,0.210487]
[1727107296400,0.517774,63701.0,63700.0,0.002]
[1727107298303,0.596261,63701.0,63700.0,0.002]
[1727107299294,0.596261,63701.0,63690.0,0.0037]
[1727107299295,0.157,63691.0,63690.0,0.0037]
[1727107299608,0.078507,63685.0,63683.0,0.13]
[1727107299810,0.3608,63691.0,63684.0,0.13]
[1727107299811,0.127902,63690.0,63684.0,0.13]
[1727107299993,0.127902,63690.0,63689.0,0.13]
[1727107300403,0.127902,63690.0,63689.0,0.208502]
[1727107300595,0.4093,63695.0,63691.0,0.078499]
[1727107301103,0.439295,63695.0,63694.0,0.13]
[1727107301305,0.3608,63695.0,63690.0,0.13]
[1727107301505,0.0785,63691.0,63690.0,0.13]
[1727107303195,0.0805,63691.0,63690.0,0.131]
[1727107303811,0.0805,63691.0,63690.0,0.209501]
[1727107304002,0.0805,63691.0,63690.0,0.210501]
[1727107304204,0.0805,63691.0,63690.0,0.132]
[1727107304605,0.0805,63691.0,63690.0,0.002]
[1727107304606,0.0815,63691.0,63690.0,0.002]
[1727107305700,0.0815,63691.0,63690.0,0.210501]
[1727107305908,0.003,63691.0,63690.0,0.210501]
[1727107306214,0.003,63691.0,63690.0,0.289002]
[1727107307101,0.003,63691.0,63690.0,0.210501]
[1727107309101,0.003,63691.0,63690.0,0.289002]
[1727107310202,0.003,63691.0,63690.0,0.33539295]
[1727107310403,0.01178,63691.0,63690.0,0.33539295]
[1727107310905,0.01178,63691.0,63690.0,0.289002]
[1727107311103,0.01178,63691.0,63690.0,0.210501]
[1727107311420,0.09028,63691.0,63690.0,0.210501]
[1727107311911,0.01178,63691.0,63690.0,0.210501]
[1727107312114,0.01178,63691.0,63690.0,0.289002]
[1727107312914,0.01178,63691.0,63690.0,0.367503]
[1727107313111,0.01178,63691.0,63690.0,0.728303]
[1727107313311,0.01178,63691.0,63690.0,1.26128986]
[1727107313505,0.01178,63691.0,63690.0,1.199343]
[1727107314237,0.0483,63706.0,63703.0,0.078485]
[1727107314238,0.078484,63704.0,63703.0,0.078485]
[1727107314422,0.078484,63704.0,63703.0,0.208485]
[1727107315418,0.079484,63704.0,63703.0,0.209485]
[1727107315718,0.440284,63704.0,63703.0,0.080485]
[1727107316014,0.518768,63704.0,63703.0,0.002]
[1727107316210,0.518768,63704.0,63692.0,0.12493893]
[1727107316211,0.3618,63704.0,63692.0,0.12493893]
[1727107316412,0.078498,63692.0,63691.0,0.078499]
[1727107317718,0.078489,63700.0,63692.0,0.001]
[1727107318019,0.078489,63700.0,63699.0,0.07849]
[1727107318219,0.439285,63703.0,63702.0,0.078486]
[1727107318516,0.439285,63703.0,63702.0,0.208486]
[1727107319413,0.439285,63703.0,63702.0,0.209486]
[1727107319617,0.439285,63703.0,63702.0,0.210486]
[1727107320820,0.439285,63703.0,63702.0,0.080486]
[1727107321311,0.517771,63703.0,63702.0,0.002]
[1727107322505,0.439285,63703.0,63702.0,0.002]
[1727107322825,0.439285,63703.0,63702.0,0.080486]
[1727107323012,0.517771,63703.0,63702.0,0.002]
[1727107324017,0.439285,63703.0,63702.0,0.002]
[1727107324224,0.517771,63703.0,63702.0,0.002]
[1727107325213,0.596257,63703.0,63702.0,0.002]
[1727107325419,0.596257,63703.0,63689.0,0.06192125]
[1727107325420,0.078497,63695.0,63694.0,0.078495]
[1727107325619,0.439297,63695.0,63694.0,0.078495]
[1727107326112,0.3608,63695.0,63694.0,0.078495]
[1727107326327,0.3608,63703.0,63699.0,0.078487]
[1727107326503,0.078487,63701.0,63700.0,0.13]
[1727107327315,0.156974,63701.0,63700.0,0.13]
[1727107327519,0.3608,63703.0,63696.0,0.078493]
[1727107327520,0.078492,63697.0,63696.0,0.25494677]
[1727107327923,0.078492,63697.0,63696.0,0.208493]
[1727107328216,0.3608,63697.0,63694.0,0.04845377]
[1727107328423,0.078495,63696.0,63695.0,0.078494]
[1727107329819,0.078501,63690.0,63689.0,0.12496053]
[1727107330017,0.078501,63690.0,63689.0,0.078502]
[1727107330319,0.078501,63690.0,63689.0,0.12496053]
[1727107330510,0.078501,63690.0,63689.0,0.078502]
[1727107331419,0.078497,63693.0,63692.0,0.078498]
[1727107331724,0.078494,63696.0,63695.0,0.078495]
[1727107334317,0.07849,63700.0,63699.0,0.078489]
[1727107334715,0.0474,63701.0,63696.0,0.078492]
[1727107334716,0.078492,63697.0,63696.0,0.078492]
[1727107334916,0.439292,63697.0,63696.0,0.078492]
[1727107335317,0.156986,63696.0,63695.0,0.001]
[1727107335624,0.078496,63694.0,63693.0,0.078497]
[1727107337630,0.078496,63694.0,63693.0,0.208497]
[1727107338016,0.079496,63694.0,63693.0,0.209497]
[1727107338715,0.080496,63694.0,63693.0,0.210497]
[1727107339135,0.080496,63694.0,63693.0,0.132]
[1727107340330,0.002,63694.0,63693.0,0.210497]
[1727107340517,0.002,63694.0,63693.0,0.28013994]
[1727107340828,0.001,63697.0,63696.0,0.078493]
[1727107341129,0.001,63697.0,63696.0,0.10303594]
[1727107341334,0.001,63697.0,63696.0,0.16495742]
[1727107342017,0.002,63697.0,63696.0,0.16595605]
[1727107342216,0.002,63697.0,63696.0,0.16695605]
[1727107342616,0.002,63697.0,63696.0,0.16695608]
[1727107342822,0.002,63697.0,63696.0,0.1050346]
[1727107343031,0.002,63697.0,63696.0,0.1669406]
[1727107343429,0.002,63697.0,63696.0,0.166939]
[1727107343619,0.002,63697.0,63696.0,0.16694219]
[1727107343932,0.002,63697.0,63696.0,0.080493]
[1727107344326,0.080492,63697.0,63696.0,0.080493]
[1727107344723,0.080492,63697.0,63696.0,0.12692475]
[1727107345126,0.080492,63697.0,63696.0,0.080493]
[1727107345338,0.519784,63697.0,63696.0,0.002]
[1727107348527,0.441292,63697.0,63696.0,0.002]
[1727107349132,0.519784,63697.0,63696.0,0.002]
[1727107350350,0.080492,63697.0,63696.0,0.002]
[1727107351037,0.158984,63697.0,63696.0,0.002]
[1727107351243,0.519784,63697.0,63696.0,0.002]
[1727107355042,0.441292,63697.0,63696.0,0.080493]
[1727107356642,0.002,63697.0,63696.0,0.080493]
[1727107357431,0.002,63697.0,63696.0,0.1269302]
[1727107357432,0.080492,63697.0,63696.0,0.1269302]
[1727107357633,0.080492,63697.0,63696.0,0.080493]
[1727107359136,0.080492,63697.0,63696.0,0.1269302]
[1727107359543,0.080492,63697.0,63696.0,0.080493]
[1727107360455,0.158984,63697.0,63696.0,0.002]
[1727107360946,0.237476,63697.0,63696.0,0.002]
[1727107361245,0.078502,63689.0,63686.0,0.0037]
[1727107361447,0.078509,63683.0,63682.0,0.06190759]
[1727107361648,0.078511,63682.0,63675.0,0.06187745]
[1727107361847,0.3608,63680.0,63673.0,0.078521]
[1727107362547,0.3608,63680.0,63672.0,0.3608]
[1727107362548,0.3608,63680.0,63674.0,0.078519]
[1727107362737,0.078518,63677.0,63674.0,0.13]
[1727107362943,0.078518,63677.0,63672.0,0.3608]
[1727107362944,0.078518,63677.0,63676.0,0.13]
[1727107363349,0.3608,63680.0,63679.0,0.078514]
[1727107364245,0.3608,63687.0,63685.0,0.078506]
[1727107364441,0.439305,63687.0,63686.0,0.208506]
[1727107365746,0.441305,63687.0,63686.0,0.208506]
[1727107366643,0.442305,63687.0,63686.0,0.208506]
[1727107368250,0.440305,63687.0,63686.0,0.13]
[1727107368452,0.441305,63687.0,63686.0,0.13]
[1727107368849,0.440305,63687.0,63686.0,0.13]
[1727107369046,0.441305,63687.0,63686.0,0.13]
[1727107369250,0.3628,63687.0,63679.0,0.3608]
[1727107369463,0.0972,63686.0,63679.0,0.3608]
[1727107369751,0.078512,63681.0,63680.0,0.13]
[1727107370355,0.078518,63676.0,63675.0,0.208518]
[1727107370947,0.079512,63681.0,63680.0,0.078513]
[1727107371148,0.079512,63681.0,63680.0,0.208513]
[1727107371753,0.078512,63681.0,63680.0,0.208513]
[1727107372460,0.0484,63686.0,63680.0,0.208513]
[1727107372461,0.3618,63687.0,63686.0,0.078506]
[1727107372850,0.439305,63687.0,63686.0,0.078506]
[1727107373456,0.3608,63687.0,63684.0,0.078506]
[1727107373752,0.3608,63687.0,63686.0,0.13]
[1727107374158,0.3608,63687.0,63686.0,0.208506]
[1727107374858,0.3618,63687.0,63686.0,0.209506]
[1727107375763,0.3628,63687.0,63686.0,0.209506]
[1727107376153,0.002,63687.0,63686.0,0.209506]
[1727107376659,0.002,63687.0,63686.0,0.208506]
[1727107377064,0.080505,63687.0,63686.0,0.208506]
[1727107377868,0.078509,63684.0,63683.0,0.078509]
[1727107379168,0.080505,63687.0,63686.0,0.078506]
[1727107379360,0.079505,63687.0,63686.0,0.208506]
[1727107379562,0.078505,63687.0,63686.0,0.208506]
[1727107379765,0.15701,63687.0,63686.0,0.13]
[1727107380262,0.440901,63690.0,63689.0,0.078502]
[1727107380472,0.439301,63690.0,63689.0,0.078502]
[1727107380648,0.00235602,63693.0,63692.0,0.156996]
[1727107380948,0.00878,63697.0,63696.0,0.078493]
[1727107381153,0.00878,63697.0,63696.0,0.208493]
[1727107382757,0.00978,63697.0,63696.0,0.209493]
[1727107382967,0.00978,63697.0,63696.0,0.287986]
[1727107383269,0.01078,63697.0,63696.0,1.359986]
[1727107383460,0.002,63697.0,63696.0,1.359986]
[1727107383966,0.002,63697.0,63696.0,0.210493]
[1727107385466,0.002,63697.0,63696.0,0.288986]
[1727107385767,0.002,63697.0,63696.0,1.359986]
[1727107386068,0.002,63697.0,63696.0,0.681493]
[1727107386371,0.002,63697.0,63696.0,1.359986]
[1727107387464,0.0037,63707.0,63706.0,0.078481]
[1727107387665,0.124675,63712.0,63711.0,0.078475]
[1727107387865,0.124675,63712.0,63711.0,0.208475]
[1727107388758,0.125675,63712.0,63711.0,0.209475]
[1727107389882,0.125675,63712.0,63711.0,0.210475]
[1727107390381,0.125675,63712.0,63711.0,0.132]
[1727107390583,0.20415,63712.0,63711.0,0.132]
[1727107390872,0.001,63712.0,63711.0,0.210475]
[1727107391276,0.079474,63712.0,63711.0,0.210475]
[1727107392081,0.079474,63712.0,63711.0,0.131]
[1727107392379,0.156948,63712.0,63711.0,0.002]
[1727107394670,0.517748,63712.0,63711.0,0.002]
[1727107395165,0.078485,63703.0,63702.0,0.13]
[1727107395362,0.15697,63703.0,63702.0,0.208486]
[1727107396480,0.15697,63703.0,63702.0,0.131]
[1727107397379,0.15697,63703.0,63702.0,0.001]
[1727107397581,0.078485,63703.0,63702.0,0.001]
[1727107397884,0.078485,63703.0,63702.0,0.131]
[1727107398073,0.15797,63703.0,63702.0,0.132]
[1727107398282,0.078492,63697.0,63692.0,0.0037]
[1727107398478,0.0785,63691.0,63690.0,0.0008]
[1727107398674,0.078502,63689.0,63688.0,0.208503]
[1727107400079,0.078502,63689.0,63688.0,0.13]
[1727107400582,0.078502,63689.0,63684.0,0.3608]
[1727107400583,0.078507,63685.0,63684.0,0.3608]
[1727107400876,0.439307,63685.0,63684.0,0.13]
[1727107401473,0.439307,63685.0,63684.0,0.208508]
[1727107402075,0.3608,63685.0,63684.0,0.208508]
[1727107402271,0.3638,63685.0,63684.0,0.208508]
[1727107402974,0.3668,63685.0,63684.0,0.208508]
[1727107403781,0.006,63685.0,63684.0,0.208508]
[1727107404180,0.005,63685.0,63684.0,0.208508]
[1727107405385,0.004,63685.0,63684.0,0.208508]
[1727107405873,0.082507,63685.0,63684.0,0.13]
[1727107406075,0.078511,63682.0,63675.0,0.36172]
[1727107406276,0.004,63685.0,63674.0,0.208519]
[1727107406277,0.078519,63675.0,63674.0,0.208519]
[1727107406476,0.078524,63672.0,63668.0,0.3608]
[1727107406677,0.078524,63672.0,63671.0,0.078524]
[1727107406983,0.078519,63676.0,63674.0,0.07852]
[1727107407176,0.078519,63676.0,63675.0,0.13]
[1727107407578,0.078519,63676.0,63675.0,0.135]
[1727107408291,0.078519,63676.0,63675.0,0.13]
[1727107408292,0.441319,63676.0,63675.0,0.13]
[1727107408491,0.519838,63676.0,63675.0,0.006]
[1727107409085,0.078527,63669.0,63668.0,0.3608]
[1727107409584,0.078528,63668.0,63667.0,0.208529]
[1727107410293,0.074528,63668.0,63667.0,0.208529]
[1727107410589,0.070528,63668.0,63667.0,0.208529]
[1727107410890,0.078533,63664.0,63663.0,0.078534]
[1727107411080,0.3608,63668.0,63662.0,0.13]
[1727107411081,0.078534,63663.0,63662.0,0.13]
[1727107411389,0.073534,63663.0,63662.0,0.208535]
[1727107411988,0.12433,63667.0,63662.0,0.13]
[1727107412194,0.12433,63667.0,63662.0,0.14]
[1727107412489,0.078534,63664.0,63662.0,0.14]
[1727107412796,0.078534,63663.0,63662.0,0.02]
[1727107414283,0.078534,63663.0,63662.0,0.019]
[1727107415197,0.002,63663.0,63662.0,0.018]
[1727107415496,0.080534,63663.0,63662.0,0.018]
[1727107415697,0.080534,63663.0,63662.0,0.096535]
[1727107416594,0.002,63663.0,63662.0,0.096535]
[1727107416808,0.080534,63663.0,63662.0,0.096535]
[1727107417383,0.002,63663.0,63662.0,0.096535]
[1727107417584,0.080534,63663.0,63662.0,0.096535]
[1727107418987,0.002,63663.0,63662.0,0.096535]
[1727107419390,0.002,63663.0,63662.0,0.17507]
[1727107419588,0.002,63663.0,63662.0,0.22137]
[1727107420303,0.002,63663.0,63662.0,0.187935]
[1727107425485,0.002,63663.0,63662.0,0.233335]
[1727107426698,0.002,63663.0,63662.0,0.096535]
[1727107427494,0.080534,63663.0,63662.0,0.096535]
[1727107427886,0.002,63663.0,63662.0,0.096535]
[1727107429108,0.080534,63663.0,63662.0,0.096535]
[1727107429403,0.080534,63663.0,63662.0,0.018]
[1727107429590,0.159068,63663.0,63662.0,0.018]
[1727107433391,0.158068,63663.0,63662.0,0.009]
[1727107433599,0.158068,63663.0,63662.0,0.01]
[1727107433887,0.159068,63663.0,63662.0,0.019]
[1727107434090,0.158068,63663.0,63662.0,0.009]
[1727107434301,0.081534,63663.0,63662.0,0.009]
[1727107434499,0.078537,63661.0,63660.0,0.078538]
[1727107439493,0.078537,63661.0,63659.0,0.13]
[1727107439494,0.078538,63660.0,63659.0,0.13]
[1727107440106,0.439338,63660.0,63659.0,0.208539]
[1727107440702,0.078538,63660.0,63659.0,0.209539]
[1727107441006,0.00878,63666.0,63665.0,0.157064]
[1727107441713,0.00878,63666.0,63665.0,0.374296]
[1727107441910,0.3645,63677.0,63676.0,0.078518]
[1727107442096,0.3608,63677.0,63676.0,0.208518]
[1727107442406,0.078515,63680.0,63679.0,0.078512]
[1727107442910,0.078515,63680.0,63676.0,0.13]
[1727107442911,0.078523,63672.0,63668.0,0.06567379]
[1727107443099,0.078523,63672.0,63671.0,0.078524]
[1727107443295,0.3608,63674.0,63673.0,0.078522]
[1727107443496,0.3608,63674.0,63673.0,0.208522]
[1727107444006,0.078517,63677.0,63673.0,0.13]
[1727107444209,0.078517,63677.0,63676.0,0.078518]
[1727107444911,0.086513,63680.0,63679.0,0.078514]
[1727107445295,0.008,63680.0,63679.0,0.078514]
[1727107445709,0.0966,63684.0,63680.0,0.078512]
[1727107445710,0.439311,63682.0,63680.0,0.078512]
[1727107446309,0.439311,63682.0,63681.0,0.078512]
[1727107446695,0.3608,63682.0,63681.0,0.208512]
[1727107446904,0.3698,63682.0,63681.0,0.208512]
[1727107447307,0.3788,63682.0,63681.0,0.208512]
[1727107447913,0.018,63682.0,63681.0,0.287024]
[1727107448210,0.018,63682.0,63681.0,0.507636]
[1727107448211,0.019,63682.0,63681.0,0.507636]
[1727107448418,0.0037,63691.0,63690.0,0.078501]
[1727107448613,0.078495,63695.0,63694.0,0.078496]
[1727107448819,0.3608,63697.0,63696.0,0.078493]
[1727107449006,0.439292,63697.0,63696.0,0.078493]
[1727107449503,0.0481,63702.0,63697.0,0.078492]
[1727107449504,0.078489,63700.0,63697.0,0.078492]
[1727107449915,0.0481,63702.0,63697.0,0.078492]
[1727107450627,0.078488,63701.0,63697.0,0.078492]
[1727107450914,0.078492,63697.0,63696.0,0.001]
[1727107451117,0.078492,63697.0,63687.0,0.1337]
[1727107451418,0.36715581,63698.0,63683.0,0.1337]
[1727107451419,0.078508,63684.0,63683.0,0.1337]
[1727107451720,0.078508,63684.0,63683.0,0.13]
[1727107453213,0.078511,63682.0,63681.0,0.078512]
[1727107453417,0.078516,63678.0,63677.0,0.08087263]
[1727107453610,0.076516,63678.0,63677.0,0.08087263]
[1727107453809,0.074516,63678.0,63677.0,0.08087263]
[1727107454821,0.074516,63678.0,63677.0,0.08187263]
[1727107455118,0.074516,63678.0,63677.0,0.00335563]
[1727107455703,0.074516,63678.0,63677.0,0.08187263]
[1727107456104,0.079516,63678.0,63677.0,0.08187263]
[1727107456305,0.079516,63678.0,63677.0,0.08087263]
[1727107456515,0.078516,63678.0,63677.0,0.08087263]
[1727107456722,0.084516,63678.0,63677.0,0.08087263]
[1727107457019,0.084516,63678.0,63677.0,0.06087263]
[1727107457221,0.446316,63678.0,63677.0,0.06087263]
[1727107457718,0.3718,63678.0,63677.0,0.06087263]
[1727107457921,0.011,63678.0,63677.0,0.50018963]
[1727107458608,0.0037,63688.0,63686.0,0.078506]
[1727107458818,0.365,63702.0,63687.0,0.0966]
[1727107458819,0.00605581,63698.0,63687.0,0.0966]
[1727107459007,0.00235581,63698.0,63697.0,0.13]
[1727107459707,0.00235581,63698.0,63697.0,0.208492]
[1727107460215,0.00835581,63698.0,63697.0,0.209492]
[1727107460824,0.01535581,63698.0,63697.0,0.210492]
[1727107461301,0.01535581,63698.0,63697.0,0.080492]
[1727107461302,0.09384681,63698.0,63697.0,0.080492]
[1727107461708,0.01535581,63698.0,63697.0,0.080492]
[1727107461914,0.01535581,63698.0,63697.0,0.210492]
[1727107463114,0.013,63698.0,63697.0,0.210492]
[1727107465824,0.013,63698.0,63697.0,1.359944]
[1727107466211,0.013,63698.0,63697.0,0.759944]
[1727107467313,0.3608,63710.0,63708.0,0.078479]
[1727107467516,0.40978,63717.0,63708.0,0.13]
[1727107467719,0.4083,63717.0,63714.0,0.13]